Workbook

Sheet Exp planification
A1: Costing Exercise
B2: Activity structure | C2: 2016 | D2: Q1 | E2: Q2 | F2: Q3 | G2: Q4 | H2: 2017 | I2: 2018 | J2: Total 2016-2018
A3: Program 1 Improve the sustainable management and use of existing conservation areas and establish more conservation areas throughout the nation | C3: =SUM(D3:G3) -> 41000 | D3: =D4 -> 20000 | E3: =E4 -> 15000 | F3: 1000 | G3: 5000 | H3: 10000 | I3: 15000 | J3: =C3+H3+I3 -> 66000
A4: Sub-program 1.1 Increase the number of new conservation areas throughout the nation | C4: =SUM(D4:G4) -> 41000 | D4: =D5 -> 20000 | E4: =E5 -> 15000 | F4: 1000 | G4: 5000 | H4: 10000 | I4: 15000 | J4: =C4+H4+I4 -> 66000
A5: Action 1.1.1 Establish protected areas throughout the nation to enhance biodiversity in Tuvalu | C5: 41000 | D5: =SUM(D6:D12) -> 20000 | E5: =SUM(E6:E12) -> 15000 | F5: =SUM(F6:F12) -> 1000 | G5: =SUM(G6:G12) -> 5000 | H5: =SUM(H6:H12) -> 10000 | I5: =SUM(I6:I12) -> 15000 | J5: =C5+H5+I5 -> 66000
B6: Activity1: Identify new potential areas for protection | C6: 20000 | D6: 20000 | J6: 20000
B7: Activity2: Assess the biodiversity of potential areas and select two high priority sites | C7: =SUM(D7:G7) -> 10000 | E7: 10000 | J7: 10000
B8: Activity3: Collect baseline information on landuse & socio-economic conditions | C8: 5000 | E8: 5000 | J8: 5000
B9: Activity4: Consult local communities about proposed protected sites | C9: 1000 | F9: 1000 | J9: 1000
B10: Activity5: Review management plans, including M & E | C10: 5000 | G10: 5000 | J10: 5000
B11: Activity6: Develop communication strategy | C11: 0 | H11: 10000 | J11: =C11+H11+I11 -> 10000
B12: Activity7: Formalise and map new areas | C12: 0 | I12: 15000 | J12: 15000

Sheet Costs by categories
A2: Sub-division of costs by categories
B3: 2016 | H3: 2017 | N3: 2018
A4: Categories of expenses | B4: Salary | C4: Operating Exp | D4: Transfert | E4: Investissement | F4: Total | G4: Validation | H4: Salary | I4: Operating Exp | J4: Transfert | K4: Investissement | L4: Total | M4: Validation | N4: Salary | O4: Operating Exp | P4: Transfert | Q4: Investissement | R4: Total | S4: Validation
A5: Sum by Expenses | B5: =B6 -> 16700 | C5: =C6 -> 24300 | D5: 0 | E5: 0 | F5: =F6 -> 41000 | H5: =H6 -> 6000 | I5: =I6 -> 14000 | J5: =J6 -> 0 | K5: =K6 -> 0 | L5: =L6 -> 10000 | N5: =N6 -> 5000 | O5: =O6 -> 10000 | P5: =P6 -> 0 | Q5: =Q6 -> 0 | R5: =R6 -> 15000
A6: ='Exp planification'!A3 -> Program 1 Improve the sustainable management and use of existing conservation areas and establish more conservation areas throughout the nation | B6: =B7 -> 16700 | C6: =C7 -> 24300 | D6: =D7 -> 0 | E6: =E7 -> 0 | F6: ='Exp planification'!C3 -> 41000 | G6: =IF((B6+C6+D6+E6)=0,0,F6-SUM(B6:E6)) -> 0 | H6: =H7 -> 6000 | I6: =I7 -> 14000 | J6: =J7 -> 0 | K6: =K7 -> 0 | L6: ='Exp planification'!H3 -> 10000 | M6: =IF((H6+I6+J6+K6)=0,0,L6-SUM(H6:K6)) -> -10000 | N6: =N7 -> 5000 | O6: =O7 -> 10000 | P6: =P7 -> 0 | Q6: =Q7 -> 0 | R6: ='Exp planification'!I3 -> 15000 | S6: =IF((N6+O6+P6+Q6)=0,0,R6-SUM(N6:Q6)) -> 0
A7: ='Exp planification'!A4 -> Sub-program 1.1 Increase the number of new conservation areas throughout the nation | B7: =B8+B14 -> 16700 | C7: =C8+C14 -> 24300 | D7: =D8+D14 -> 0 | E7: 0 | F7: ='Exp planification'!C4 -> 41000 | G7: =IF((B7+C7+D7+E7)=0,0,F7-SUM(B7:E7)) -> 0 | H7: =H8+H14 -> 6000 | I7: =I8+I14 -> 14000 | J7: =J8+J14 -> 0 | K7: =K8+K14 -> 0 | L7: ='Exp planification'!H4 -> 10000 | M7: =IF((H7+I7+J7+K7)=0,0,L7-SUM(H7:K7)) -> -10000 | N7: =N8+N14 -> 5000 | O7: =O8+O14 -> 10000 | P7: =P8+P14 -> 0 | Q7: =Q8+Q14 -> 0 | R7: ='Exp planification'!I4 -> 15000 | S7: =IF((N7+O7+P7+Q7)=0,0,R7-SUM(N7:Q7)) -> 0
A8: ='Exp planification'!A5 -> Action 1.1.1 Establish protected areas throughout the nation to enhance biodiversity in Tuvalu | B8: =SUM(B9:B15) -> 16700 | C8: =SUM(C9:C15) -> 24300 | D8: =SUM(D9:D15) -> 0 | E8: =SUM(E9:E15) -> 0 | F8: ='Exp planification'!C5 -> 41000 | G8: =IF((B8+C8+D8+E8)=0,0,F8-SUM(B8:E8)) -> 0 | H8: =SUM(H9:H15) -> 3000 | I8: =SUM(I9:I15) -> 7000 | J8: =SUM(J9:J15) -> 0 | K8: =SUM(K9:K15) -> 0 | L8: ='Exp planification'!H5 -> 10000 | M8: =IF((H8+I8+J8+K8)=0,0,L8-SUM(H8:K8)) -> 0 | N8: =SUM(N9:N15) -> 5000 | O8: =SUM(O9:O15) -> 10000 | P8: =SUM(P9:P15) -> 0 | Q8: =SUM(Q9:Q15) -> 0 | R8: ='Exp planification'!I5 -> 15000 | S8: =IF((N8+O8+P8+Q8)=0,0,R8-SUM(N8:Q8)) -> 0
A9: ='Exp planification'!B6 -> Activity1: Identify new potential areas for protection | B9: 5000 | C9: 15000 | F9: ='Exp planification'!C6 -> 20000 | G9: 0 | L9: ='Exp planification'!H6 -> 0 | M9: 0 | R9: ='Exp planification'!I6 -> 0 | S9: 0
A10: ='Exp planification'!B7 -> Activity2: Assess the biodiversity of potential areas and select two high priority sites | B10: 8000 | C10: 2000 | F10: ='Exp planification'!C7 -> 10000 | G10: 0 | L10: ='Exp planification'!H7 -> 0 | M10: 0 | R10: ='Exp planification'!I7 -> 0 | S10: 0
A11: ='Exp planification'!B8 -> Activity3: Collect baseline information on landuse & socio-economic conditions | B11: 2500 | C11: 2500 | F11: ='Exp planification'!C8 -> 5000 | G11: 0 | L11: ='Exp planification'!H8 -> 0 | M11: 0 | R11: ='Exp planification'!I8 -> 0 | S11: 0
A12: ='Exp planification'!B9 -> Activity4: Consult local communities about proposed protected sites | B12: 200 | C12: 800 | F12: ='Exp planification'!C9 -> 1000 | G12: 0 | L12: ='Exp planification'!H9 -> 0 | M12: 0 | R12: ='Exp planification'!I9 -> 0 | S12: 0
A13: ='Exp planification'!B10 -> Activity5: Review management plans, including M & E | B13: 1000 | C13: 4000 | F13: ='Exp planification'!C10 -> 5000 | G13: 0 | L13: ='Exp planification'!H10 -> 0 | M13: 0 | R13: ='Exp planification'!I10 -> 0 | S13: 0
A14: ='Exp planification'!B11 -> Activity6: Develop communication strategy | F14: ='Exp planification'!C11 -> 0 | G14: 0 | H14: 3000 | I14: 7000 | L14: ='Exp planification'!H11 -> 10000 | M14: 0 | R14: ='Exp planification'!I11 -> 0 | S14: 0
A15: ='Exp planification'!B12 -> Activity7: Formalise and map new areas | F15: ='Exp planification'!C12 -> 0 | G15: =IF((B15+C15+D15+E15)=0,0,F15-SUM(B15:E15)) -> 0 | H15: 0 | I15: 0 | L15: ='Exp planification'!H12 -> 0 | M15: 0 | N15: 5000 | O15: 10000 | R15: ='Exp planification'!I12 -> 15000 | S15: 0

Sheet Chart
A1: 2 | B1: Expenses by categories from 2016-2018
B3: Expenses by categories
B4: Categories/years | C4: 2016 | D4: =C4+1 -> 2017 | E4: =D4+1 -> 2018 | F4: Total | G4: %
B5: Salary | C5: ='Costs by categories'!B5 -> 16700 | D5: ='Costs by categories'!H5 -> 6000 | E5: ='Costs by categories'!N5 -> 5000 | F5: =SUM(C5:E5) -> 27700 | G5: =F5/$F$9 -> 0.3644736842
B6: Operating Exp | C6: ='Costs by categories'!C5 -> 24300 | D6: ='Costs by categories'!I5 -> 14000 | E6: ='Costs by categories'!O5 -> 10000 | F6: =SUM(C6:E6) -> 48300 | G6: =F6/$F$9 -> 0.6355263158
B7: Transfert | C7: ='Costs by categories'!D5 -> 0 | D7: ='Costs by categories'!J5 -> 0 | E7: ='Costs by categories'!P5 -> 0 | F7: =SUM(C7:E7) -> 0 | G7: =F7/$F$9 -> 0
B8: Investissement | C8: ='Costs by categories'!E5 -> 0 | D8: ='Costs by categories'!K5 -> 0 | E8: ='Costs by categories'!Q5 -> 0 | F8: =SUM(C8:E8) -> 0 | G8: =F8/$F$9 -> 0
B9: TOTAL expenses | C9: =SUM(C5:C8) -> 41000 | D9: =SUM(D5:D8) -> 20000 | E9: =SUM(E5:E8) -> 15000 | F9: =SUM(F5:F8) -> 76000 | G9: =F9/$F$9 -> 1
